bitfinex-derivatives/quotes_ETHF0:USTF0_20250520
["timestamp","ask_amount","ask_price","bid_price","bid_amount"]
[1747744551377,0.80374,2487.4,2487.3,11.55737]
[1747744551881,0.80374,2487.4,2487.3,3.34957]
[1747744553085,0.80374,2487.4,2487.3,4.15334]
[1747744553386,0.80374,2487.4,2487.3,3.34957]
[1747744554083,0.80374,2487.4,2487.3,4.15334]
[1747744555480,3.42773,2487.8,2487.4,0.8037]
[1747744555786,0.80367,2487.6,2487.5,2.2492]
[1747744556177,0.80367,2487.6,2487.5,3.45551]
[1747744556376,1.2964,2488.0,2487.6,2.00919]
[1747744556580,1.2964,2488.0,2487.9,4.01138]
[1747744556885,0.3214351,2488.0,2487.9,4.01138]
[1747744557183,0.3214351,2488.0,2487.9,6.021065]
[1747744558487,0.80955059,2488.1,2488.0,0.80355]
[1747744558694,0.80955059,2488.1,2488.0,2.21475]
[1747744558980,4.745,2488.9,2488.1,0.80351]
[1747744559290,0.80338,2488.6,2488.5,0.80336]
[1747744559685,0.80338,2488.6,2488.5,2.81256]
[1747744560191,0.80932059,2488.8,2488.7,0.80332]
[1747744560382,0.80932059,2488.8,2488.7,10.764]
[1747744560688,0.80932059,2488.8,2488.7,12.77303999]
[1747744561185,2.81836059,2488.8,2488.7,10.764]
[1747744561389,10.50226059,2488.8,2488.7,10.764]
[1747744562582,10.50226059,2488.8,2488.7,5.30413823]
[1747744563187,0.80342,2488.4,2488.3,10.64502059]
[1747744563387,0.80342,2488.4,2488.3,12.00972059]
[1747744563588,2.812785,2488.4,2488.3,12.00972059]
[1747744563890,2.812785,2488.4,2488.3,10.64502059]
[1747744564388,7.812785,2488.4,2488.3,0.00602059]
[1747744565690,0.80364,2487.7,2487.6,0.49572657]
[1747744565892,4.01144,2487.7,2487.6,0.49572657]
[1747744566095,11.02137,2487.7,2487.6,0.49572657]
[1747744566487,7.39457,2487.7,2487.6,0.49572657]
[1747744567099,0.80371,2487.5,2487.4,0.00602059]
[1747744567585,0.80371,2487.5,2487.4,2.01611059]
[1747744568295,0.80371,2487.5,2487.4,3.38961059]
[1747744569594,0.80371,2487.5,2487.4,4.19335059]
[1747744569794,0.80371,2487.5,2487.4,3.38961059]
[1747744571992,0.80371,2487.5,2487.4,4.19335059]
[1747744572594,0.80371,2487.5,2487.4,3.38961059]
[1747744572792,0.80371,2487.5,2487.4,4.19335059]
[1747744573799,1.3598,2488.0,2487.5,2.00927]
[1747744573999,2.00865,2488.3,2487.8,3.2078]
[1747744574193,0.80357,2488.0,2487.9,2.19805]
[1747744574686,0.80357,2488.0,2487.9,4.207735]
[1747744574889,4.01137,2488.0,2487.9,2.009685]
[1747744575192,0.80361,2487.8,2487.7,2.22272]
[1747744575700,0.80361,2487.8,2487.7,12.0601]
[1747744575896,2.81346,2487.8,2487.7,12.0601]
[1747744577806,0.80364,2487.7,2487.6,0.24859553]
[1747744578008,5.39424,2487.7,2487.6,0.24859553]
[1747744578202,7.40417,2487.7,2487.6,0.24859553]
[1747744578904,0.80367,2487.6,2487.5,10.641]
[1747744579201,2.18647,2487.6,2487.5,10.641]
[1747744579404,4.19648001,2487.6,2487.5,10.72586477]
[1747744580498,4.19648001,2487.6,2487.5,12.08326477]
[1747744580699,4.19648001,2487.6,2487.5,10.72586477]
[1747744581598,5.63218001,2487.6,2487.5,10.72586477]
[1747744582301,2.81368001,2487.6,2487.5,12.08326477]
[1747744582501,0.80367,2487.6,2487.5,12.08326477]
[1747744582904,4.01145,2487.7,2487.6,0.80367]
[1747744583215,3.2078,2487.7,2487.6,0.80367]
[1747744583509,4.01144,2487.7,2487.6,2.00992999]
[1747744584216,4.01144,2487.7,2487.6,2.81359999]
[1747744585116,4.01144,2487.7,2487.6,2.00992999]
[1747744585310,0.80367,2487.6,2487.5,12.08326477]
[1747744585709,2.81368001,2487.6,2487.5,12.08326477]
[1747744586418,2.81368001,2487.6,2487.5,12.88697477]
[1747744587212,3.2078,2487.7,2487.5,14.09327477]
[1747744587416,0.80367,2487.6,2487.5,12.88694477]
[1747744587812,4.01145,2487.7,2487.5,14.09327477]
[1747744588008,3.2078,2487.7,2487.6,0.80367]
[1747744588415,4.01144,2487.7,2487.6,2.81359999]
[1747744588816,0.8036,2487.9,2487.8,0.80358]
[1747744589315,0.8036,2487.9,2487.8,2.813345]
[1747744590016,4.01138,2488.0,2487.9,0.80358]
[1747744590225,4.01138,2488.0,2487.9,2.15558]
[1747744590521,4.01138,2488.0,2487.9,4.165265]
[1747744592123,3.2078,2488.0,2487.9,4.165265]
[1747744592428,4.01135,2488.0,2487.9,4.165265]
[1747744592623,4.01135,2488.0,2487.9,3.361685]
[1747744592923,6.021035,2488.0,2487.9,1.352]
[1747744594422,6.021035,2488.0,2487.9,2.40456328]
[1747744594626,4.01135,2488.0,2487.9,4.41424828]
[1747744594823,4.6093,2488.3,2487.9,3.61066828]
[1747744595119,3.2078,2488.3,2488.1,0.80349]
[1747744595327,0.80351,2488.2,2488.1,2.812975]
[1747744595923,0.80351,2488.1,2488.0,1.315]
[1747744596118,0.8035,2488.2,2488.1,0.80348]
[1747744596519,3.2078,2488.3,2488.2,0.80348]
[1747744596826,3.2078,2488.3,2488.2,2.812925]
[1747744597025,4.01125,2488.3,2488.2,2.812925]
[1747744597727,4.01125,2488.3,2488.2,3.1449246]
[1747744598422,4.01125,2488.3,2488.2,13.3169246]
[1747744598925,2.00842,2488.6,2488.4,0.80338]
[1747744598926,0.80341,2488.5,2488.4,0.80338]
[1747744599126,0.80345,2488.3,2488.2,11.3074596]
[1747744599324,0.80345,2488.3,2488.2,13.3168246]
[1747744600121,3.2078,2488.6,2488.2,12.5133646]
[1747744600322,4.01115,2488.6,2488.5,0.80338]
[1747744600617,0.00602059,2488.8,2488.7,0.80332]
[1747744600920,1.55947643,2489.4,2489.3,0.80313]
[1747744601122,2.45240159,2489.6,2489.5,0.80306]
[1747744601424,7.85804865,2490.6,2490.5,0.80274]
[1747744601619,7.85804865,2490.6,2490.5,10.97374]
[1747744601820,7.85804865,2490.6,2490.5,12.98133]
[1747744602020,8.66075865,2490.6,2490.5,12.17859]
[1747744602420,0.80271,2490.6,2490.5,12.49968908]
[1747744603227,2.78202005,2490.8,2490.5,12.49968908]
[1747744603432,2.78202005,2490.8,2490.6,0.80271]
[1747744603631,2.78202005,2490.8,2490.6,2.81018]
[1747744603826,0.80267,2490.7,2490.6,2.00747]
[1747744604028,0.80271,2490.6,2490.5,10.49209908]
[1747744604427,2.8103,2490.6,2490.5,10.166]
[1747744604629,6.0181,2490.6,2490.5,10.166]
[1747744605225,0.80277,2490.4,2490.3,0.25459268]
[1747744605426,0.80277,2490.4,2490.3,10.42059268]
[1747744605833,7.81052,2490.4,2490.3,0.25459268]
[1747744606032,2.81052,2490.4,2490.3,0.25459268]
[1747744606634,7.81052,2490.4,2490.3,0.00602059]
[1747744606832,0.80284,2490.2,2490.1,40.507]
[1747744607125,0.80287,2490.1,2490.0,10.166]
[1747744607331,0.80296,2489.8,2489.7,1.3985]
[1747744607534,0.80296,2489.8,2489.7,11.5645]
[1747744607925,0.80296,2489.8,2489.7,13.572735]
[1747744608324,0.803,2489.7,2489.6,0.24857209]
[1747744608533,0.803,2489.7,2489.6,10.41357209]
[1747744608730,0.803,2489.7,2489.6,10.165]
[1747744608939,5.21434,2490.9,2489.7,2.0075]
[1747744609138,5.21434,2490.9,2490.3,0.80279]
[1747744609434,3.2078,2490.9,2490.5,0.80272]
[1747744609626,0.80267,2490.7,2490.6,10.165]
[1747744610031,0.80267,2490.7,2490.6,12.17251]
[1747744610641,2.81018,2490.7,2490.6,10.165]
[1747744611137,4.01423,2490.7,2490.4,10.164]
[1747744611436,0.80274,2490.5,2490.4,10.164]
[1747744611936,4.20201,2490.5,2490.4,10.164]
[1747744613142,2.19434,2490.5,2490.4,10.164]
[1747744613339,0.00602059,2490.8,2490.4,12.17167]
[1747744613638,0.80271,2490.6,2490.5,2.30514]
[1747744613937,0.80271,2490.6,2490.5,1.5024]
[1747744614132,0.80271,2490.6,2490.5,3.50999]
[1747744614334,2.8103,2490.6,2490.5,1.5024]
[1747744615435,2.8103,2490.6,2490.5,11.6654]
[1747744616128,0.80271,2490.6,2490.5,11.6654]
[1747744616539,0.80271,2490.6,2490.5,14.47573]
[1747744616841,0.80271,2490.6,2490.5,13.67299]
[1747744617043,0.80271,2490.6,2490.5,14.47573]
[1747744617339,0.80269,2490.7,2490.6,0.80268]
[1747744617741,0.80269,2490.7,2490.6,2.81019]
[1747744619248,0.00602059,2490.8,2490.7,0.80268]
[1747744619543,0.80866059,2490.8,2490.7,4.348105]
[1747744620530,0.80866059,2490.8,2490.7,11.46]
[1747744620735,2.24786059,2490.8,2490.7,11.46]
[1747744620935,0.80271,2490.6,2490.5,0.3212054]
[1747744621143,0.80271,2490.6,2490.5,10.2432054]
[1747744621445,0.80271,2490.6,2490.5,12.4527454]
[1747744621646,0.80271,2490.7,2490.6,0.80268]
[1747744621836,0.80268,2490.7,2490.6,0.80268]
[1747744622037,0.80868059,2490.8,2490.7,0.80268]
[1747744622340,0.80868059,2490.8,2490.7,2.20948]
[1747744622641,2.81610559,2490.8,2490.7,2.20948]
[1747744622840,0.00602059,2490.8,2490.7,4.216905]
[1747744623242,0.80866059,2490.8,2490.7,4.216905]
[1747744624337,0.80866059,2490.8,2490.7,14.137905]
[1747744624538,0.80866059,2490.8,2490.7,13.335225]
[1747744625539,0.80866059,2490.8,2490.7,1.4068]
[1747744625844,2.24256059,2490.8,2490.7,11.3278]
[1747744626042,0.80268,2490.7,2490.6,0.3212054]
[1747744626236,2.30568,2490.7,2490.6,0.24857209]
[1747744626550,4.31319,2490.7,2490.6,10.16957209]
[1747744627341,9.31319,2490.7,2490.6,10.16957209]
[1747744627949,0.80274,2490.5,2490.4,50.7219996]
[1747744628246,4.01054,2490.5,2490.4,10.2529996]
[1747744628446,6.01821,2490.5,2490.4,9.921]
[1747744628636,0.80284,2490.2,2490.1,0.3319996]
[1747744628839,4.01064,2490.2,2490.1,0.3319996]
[1747744629041,6.01855,2490.2,2490.1,0.3319996]
[1747744630448,6.01855,2490.2,2490.1,0.65319296]
[1747744630948,6.01855,2490.2,2490.1,10.57419296]
[1747744631344,4.01064,2490.2,2490.1,12.58210296]
[1747744631549,4.01064,2490.2,2490.1,13.05297336]
[1747744631550,2.72604848,2490.2,2490.1,13.05297336]
[1747744631745,0.80276,2490.5,2490.4,0.80277]
[1747744632048,0.80276,2490.5,2490.4,0.80275]
[1747744632347,4.01053,2490.6,2490.5,0.80274]
[1747744632549,4.01053,2490.6,2490.5,1.4066]
[1747744632748,0.80284,2490.2,2490.1,0.32119336]
[1747744632946,0.80284,2490.2,2490.1,10.24319336]
[1747744633143,0.80284,2490.2,2490.1,2.32910336]
[1747744633346,6.01855,2490.2,2490.1,9.922]
[1747744633950,6.01855,2490.2,2490.1,10.72487]
[1747744634150,2.81075,2490.2,2490.1,9.922]
[1747744634451,2.81075,2490.2,2490.1,9.921]
[1747744634749,2.81075,2490.2,2490.1,10.24216354]
[1747744634945,0.80284,2490.2,2490.1,12.25007354]
[1747744635153,0.80284,2490.2,2490.1,11.69676354]
[1747744635452,6.01855,2490.2,2490.1,0.32116354]
[1747744635652,6.01855,2490.2,2490.1,10.24316354]
[1747744636049,7.43345,2490.2,2490.1,11.69776354]
[1747744636250,6.01855,2490.2,2490.1,12.19722686]
[1747744636452,2.81075,2490.2,2490.1,12.19722686]
[1747744636652,6.01855,2490.2,2490.1,12.19722686]
[1747744636948,7.43345,2490.2,2490.1,12.19722686]
[1747744637154,4.22565,2490.2,2490.1,12.19722686]
[1747744638154,7.43345,2490.2,2490.1,12.19722686]
[1747744639555,6.01855,2490.2,2490.1,12.19722686]
[1747744640149,2.81075,2490.2,2490.1,12.19722686]
[1747744640450,2.81075,2490.2,2490.1,12.28209163]
[1747744641254,6.01855,2490.2,2490.1,12.28209163]
[1747744641558,7.50785,2490.2,2490.1,10.82849163]
[1747744642656,7.50785,2490.2,2490.1,10.32902831]
[1747744643245,7.50785,2490.2,2490.1,0.40602831]
[1747744643452,2.0073,2490.0,2489.5,0.83369998]
[1747744643651,0.80319,2489.1,2488.9,1.4844]
[1747744643854,2.81199,2489.1,2488.9,1.4844]
[1747744644348,3.2078,2489.3,2489.0,3.16027461]
[1747744644555,2.26272059,2489.4,2489.3,0.80313]
[1747744644756,0.00602059,2489.4,2489.3,10.72613]
[1747744644955,0.00602059,2489.4,2489.3,12.734685]
[1747744645356,0.00602059,2489.4,2489.3,2.811685]
[1747744645662,0.00602059,2489.4,2489.3,14.253085]
[1747744646863,2.8176656,2489.4,2489.3,11.1654]
[1747744647061,0.80316,2489.2,2489.1,41.27619]
[1747744647363,0.80315,2489.3,2489.2,0.80313]
[1747744648665,0.80316,2489.2,2489.1,50.92317]
[1747744648858,2.008635,2489.3,2488.6,3.2078]
[1747744648859,7.008635,2489.3,2488.6,3.2078]
[1747744649053,0.80345,2488.3,2488.0,9.647]
[1747744649574,2.812895,2488.3,2488.0,9.647]
[1747744649764,0.80345,2488.3,2488.0,9.647]
[1747744650059,0.80345,2488.3,2488.1,1.4482]
[1747744650565,0.80348,2488.2,2488.1,0.3320383]
[1747744650759,5.47618,2488.2,2488.1,0.3320383]
[1747744651062,7.485705,2488.2,2488.1,0.3320383]
[1747744651864,5.217325,2488.2,2488.1,0.3320383]
[1747744652060,3.2078,2488.4,2488.1,3.454025]
[1747744652261,0.80348,2488.2,2488.1,1.4445]
[1747744652459,0.80348,2488.2,2488.1,1.408]
[1747744652660,4.01125,2488.4,2488.1,3.417525]
[1747744652859,0.80345,2488.3,2488.1,3.417525]
[1747744653267,0.80348,2488.2,2488.1,3.417525]
[1747744653865,0.80351,2488.1,2488.0,9.648]
[1747744654065,0.80355,2488.0,2487.9,0.3320383]
[1747744654269,0.80355,2488.0,2487.9,9.9820383]
[1747744654462,7.813235,2488.0,2487.9,8.3e-06]
[1747744654667,9.221435,2488.0,2487.9,8.3e-06]
[1747744656363,2.00929,2487.5,2487.1,0.32154913]
[1747744656567,0.8038,2487.2,2487.1,0.32154913]
[1747744657069,2.814135,2487.2,2487.1,0.32154913]
[1747744657358,4.350735,2487.2,2487.1,0.32154913]
[1747744657567,0.80384,2487.1,2487.0,9.46636913]
[1747744657754,2.34044,2487.1,2487.0,9.46636913]
[1747744658066,0.8041,2486.3,2486.2,12.7014]
[1747744658260,0.099,2486.3,2484.8,4.67017698]
[1747744658463,4.01232,2485.0,2484.9,7.17027815]
[1747744658865,3.2078,2485.0,2484.9,9.18239315]
[1747744659364,3.2078,2485.0,2484.9,19.31939315]
[1747744659561,3.2078,2485.1,2484.9,19.31939315]
[1747744659859,3.2078,2485.0,2484.9,9.98694315]
[1747744660063,3.2078,2485.0,2484.9,20.12377814]
[1747744660362,124.5865473,3222.5,2484.9,20.35659]
[1747744660363,3.2078,2486.3,2484.9,20.35659]
[1747744660569,3.2078,2486.3,2485.5,3.2078]
[1747744660761,0.80429,2485.7,2485.6,10.137]
[1747744660958,1.5,2486.2,2485.6,11.14023189]
[1747744661163,0.80417,2486.1,2485.6,11.94452189]
[1747744661364,0.80419,2486.0,2485.7,0.00603318]
[1747744661764,0.80423,2485.9,2485.7,1.00926507]
[1747744662071,0.80426,2485.8,2485.7,1.00926507]
[1747744662459,0.80426,2485.8,2485.7,3.02073007]
[1747744662769,2.81572501,2485.8,2485.7,0.00603318]
[1747744663068,3.2078,2486.0,2485.7,1.00926507]
[1747744663268,0.80426,2485.8,2485.7,1.00926507]
[1747744663573,0.80426,2485.8,2485.7,0.00603318]
[1747744664968,0.80426,2485.8,2485.7,3.02073007]
[1747744665366,2.81572501,2485.8,2485.7,0.00603318]
[1747744665568,0.80426,2485.8,2485.7,0.00603318]
[1747744665771,2.81572501,2485.8,2485.7,10.14803318]
[1747744666769,0.80426,2485.8,2485.7,12.15949818]
[1747744667474,0.80426,2485.8,2485.7,13.68499818]
[1747744667772,0.80426,2485.8,2485.7,12.16049818]
[1747744667968,2.81572501,2485.8,2485.7,0.00603318]
[1747744668165,2.81572501,2485.8,2485.7,10.14903318]
[1747744668369,2.81572501,2485.8,2485.7,0.00603318]
[1747744668567,2.81572501,2485.8,2485.7,10.14903318]
[1747744668782,7.81572501,2485.8,2485.7,0.00603318]
[1747744668967,9.34302501,2485.8,2485.7,0.00603318]
[1747744669776,9.34302501,2485.8,2485.7,0.09089795]
[1747744670666,9.34302501,2485.8,2485.7,7.95e-06]
[1747744670966,0.80464,2484.6,2484.5,10.144]
[1747744671168,0.80468,2484.5,2484.4,10.144]
[1747744671462,2.33198,2484.5,2484.4,10.144]
[1747744671667,4.3445,2484.5,2484.4,10.144]
[1747744671868,4.3445,2484.5,2484.0,0.4915033]
[1747744671869,0.80481,2484.1,2484.0,0.4915033]
[1747744672069,2.81765,2484.1,2484.0,0.4915033]
[1747744672274,2.81765,2484.1,2484.0,1.5374]
[1747744672568,2.81765,2484.1,2483.9,10.94887]
[1747744672773,2.01284,2484.1,2484.0,10.144]
[1747744672971,1.54193318,2484.7,2484.0,13.3518]
[1747744673170,1.54193318,2484.7,2484.3,3.2078]
[1747744673365,0.80471,2484.5,2484.4,1.5374]
[1747744673565,1.5519,2484.6,2484.4,2.3421]
[1747744673776,0.00603318,2484.7,2484.6,0.80464]
[1747744673978,0.00603318,2484.7,2484.6,14.15944]
[1747744674174,0.80468,2484.5,2484.4,1.5374]
[1747744674379,2.01162,2484.6,2484.2,10.147]
[1747744674678,0.80476,2484.3,2484.2,10.147]
[1747744674872,2.01181,2484.4,2483.9,3.2078]
[1747744675064,1.5744,2484.3,2483.7,51.27598209]
[1747744675269,1.5744,2484.3,2483.9,3.2078]
[1747744675472,0.80481,2484.1,2484.0,1.4493]
[1747744675877,0.80479,2484.2,2484.0,4.46537188]
[1747744676065,0.80479,2484.2,2484.0,2.45253189]
[1747744676267,3.2078,2484.4,2484.0,4.46533189]
[1747744676476,5.22052,2484.4,2484.0,2.45253189]
[1747744676776,5.2195,2484.5,2484.0,2.45253189]
[1747744676981,0.80479,2484.2,2484.0,2.45253189]
[1747744677280,2.0115,2484.8,2484.0,3.97393189]
[1747744677281,2.01148,2484.8,2484.0,3.97393189]
[1747744677471,2.01148,2484.8,2484.1,1.4896]
[1747744677670,0.80474,2484.3,2484.2,11.5983]
[1747744677871,0.80474,2484.3,2484.2,14.8061]
[1747744678071,0.80474,2484.3,2484.2,17.82201189]
[1747744678377,0.80474,2484.3,2484.2,12.60153189]
[1747744678673,0.80474,2484.3,2484.2,11.5983]
[1747744678979,2.81742,2484.3,2484.2,11.5983]
[1747744680481,0.80474,2484.3,2484.2,14.62737285]
[1747744680881,0.00603318,2484.7,2484.2,19.62737285]
[1747744681174,3.2078,2486.3,2484.7,2.01151]
[1747744681380,3.2078,2486.3,2485.6,3.2078]
[1747744681576,0.80426,2485.8,2485.7,10.15]
[1747744681875,0.80442,2485.3,2485.2,3.2078]
[1747744682181,0.00603318,2485.5,2485.4,0.80438]
[1747744682674,0.00603318,2485.5,2485.4,8.81328871]
[1747744682878,0.81038318,2485.5,2485.4,18.15790871]
[1747744683268,0.00603318,2485.5,2485.4,18.15790871]
[1747744683475,0.00603318,2485.5,2485.4,18.96229871]
[1747744683884,0.81038318,2485.5,2485.4,8.00890871]
[1747744684182,0.00603318,2485.5,2485.4,4.13523862]
[1747744684375,0.00603318,2485.5,2485.4,19.28423862]
[1747744684683,5.21808,2486.3,2485.4,17.48264991]
[1747744684874,0.80422,2485.9,2485.8,3.2078]
[1747744685073,0.80422,2485.9,2485.8,13.3568]
[1747744685275,0.80422,2485.9,2485.8,15.5611537]
[1747744686179,0.81020318,2486.1,2485.8,20.88309361]
[1747744686382,0.81020318,2486.1,2485.9,0.8042]
[1747744686383,0.80419,2486.0,2485.9,0.8042]
[1747744686681,0.00603318,2486.1,2485.9,0.19296871]
[1747744686882,0.00603318,2486.1,2485.9,2.20423371]
[1747744687376,0.80419,2486.0,2485.9,2.20423371]
[1747744687578,0.80422,2485.9,2485.8,3.6993033]
[1747744687779,0.00603318,2486.1,2485.8,16.85580701]
[1747744688080,0.80422,2485.9,2485.8,14.04027201]
[1747744688281,0.80422,2485.9,2485.8,16.05157701]
[1747744688884,0.80422,2485.9,2485.8,5.90357701]
[1747744689082,0.80432,2485.6,2485.5,0.65546225]
[1747744689277,0.80432,2485.6,2485.5,0.84843096]
[1747744689482,0.80432,2485.6,2485.5,2.86005596]
[1747744690275,2.01059,2485.9,2485.5,9.67573616]
[1747744690276,0.61729447,2485.9,2485.5,9.67573616]
[1747744690583,0.80422,2485.9,2485.8,3.2078]
[1747744691085,0.80422,2485.9,2485.8,5.21918499]
[1747744691298,0.80422,2485.9,2485.8,6.02344499]
[1747744691487,0.80422,2485.9,2485.8,5.21918499]
[1747744691692,0.80422,2485.9,2485.8,15.61992645]
[1747744691905,0.80422,2485.9,2485.8,16.42418645]
[1747744692090,0.80422,2485.9,2485.8,15.61992645]
[1747744693400,0.80422,2485.9,2485.8,15.95131839]
[1747744694000,0.00603318,2486.1,2485.8,12.74351839]
[1747744694189,0.00603318,2486.1,2486.0,0.80419]
[1747744694600,0.00603318,2486.1,2486.0,2.815415]
[1747744694994,0.00603318,2486.1,2486.0,7.815415]
[1747744695198,0.00603318,2486.1,2486.0,8.4685484]
[1747744695398,0.00603318,2486.1,2486.0,3.4685484]
[1747744695905,0.80401,2486.6,2486.5,0.804]
[1747744696204,0.80401,2486.6,2486.5,10.883]
[1747744696396,4.01174,2486.8,2486.7,0.80396]
[1747744696598,0.80393,2486.8,2486.7,2.814605]
[1747744696794,3.2078,2487.1,2486.7,2.010655]
[1747744696992,3.2078,2487.1,2486.9,0.80387]
[1747744696993,0.80391,2487.0,2486.9,0.80387]
[1747744697205,0.80391,2487.0,2486.9,10.88287]
[1747744697397,0.80391,2487.0,2486.9,12.08949499]
[1747744697998,0.8039,2486.9,2486.8,1.5443]
[1747744698203,0.8039,2486.9,2486.8,11.6213]
[1747744698407,4.27607501,2486.9,2486.8,11.6213]
[1747744698604,4.27607501,2486.9,2486.8,10.077]
[1747744698801,7.48387501,2486.9,2486.8,10.077]
[1747744699001,12.48387501,2486.9,2486.8,10.077]
[1747744699500,12.48387501,2486.9,2486.7,3.37e-06]
[1747744699501,0.80393,2486.8,2486.7,3.37e-06]
[1747744699700,2.36573,2486.8,2486.7,3.37e-06]
[1747744699901,2.00995,2486.7,2486.3,1.4647]
[1747744700100,0.80409,2486.3,2486.2,53.8288]
[1747744700410,0.80413,2486.2,2486.1,1.94e-06]
[1747744700609,3.86223,2486.2,2486.1,1.94e-06]
[1747744700805,10.87337,2486.2,2486.1,1.94e-06]
[1747744701007,0.80416,2486.1,2486.0,5.12e-06]
[1747744701207,4.377185,2486.1,2486.0,5.12e-06]
[1747744701406,9.377185,2486.1,2486.0,5.12e-06]
[1747744701609,0.80422,2485.9,2485.8,9.25013512]
[1747744701810,4.01202,2485.9,2485.8,9.25013512]
[1747744702006,11.023405,2485.9,2485.8,9.25013512]
[1747744702205,12.587105,2485.9,2485.8,9.25013512]
[1747744702810,4.379305,2485.9,2485.8,9.25013512]
[1747744703203,2.36792,2485.9,2485.8,9.25013512]
[1747744703810,4.379305,2485.9,2485.8,9.25013512]
[1747744704111,0.80429,2485.7,2485.6,0.00603318]
[1747744704504,2.815835,2485.7,2485.6,0.00603318]
[1747744705410,4.383235,2485.7,2485.6,0.00603318]
[1747744705615,9.383235,2485.7,2485.6,0.00603318]
[1747744706226,4.383235,2485.7,2485.6,0.00603318]
[1747744708615,9.383235,2485.7,2485.6,0.00603318]
[1747744709014,9.383235,2485.7,2485.6,3.18e-06]
[1747744709509,4.383235,2485.7,2485.6,3.18e-06]
[1747744710315,9.383235,2485.7,2485.6,3.18e-06]
[1747744710505,4.383235,2485.7,2485.6,3.18e-06]
[1747744711217,9.383235,2485.7,2485.6,3.18e-06]
[1747744712308,4.383235,2485.7,2485.6,3.18e-06]
[1747744714218,4.43833536,2485.7,2485.6,3.18e-06]
[1747744714407,4.43833536,2485.7,2485.6,0.08486795]
[1747744718519,0.05510036,2485.7,2485.6,2.09641295]
[1747744718814,0.05510036,2485.7,2485.6,4.41303295]
[1747744719012,2.01017,2486.4,2485.6,8.60871295]
[1747744719212,0.80425,2485.9,2485.8,0.80424]
[1747744719414,0.80425,2485.9,2485.8,1.5123]
[1747744719613,0.80425,2485.9,2485.6,0.08486795]
[1747744719614,0.80429,2485.7,2485.6,9.84386795]
[1747744719816,0.80429,2485.7,2485.6,0.08486795]
[1747744720015,11.023635,2485.7,2485.6,7.95e-06]
[1747744720215,0.80432,2485.6,2485.5,2.19e-06]
[1747744720414,2.33362,2485.6,2485.5,2.19e-06]
[1747744720623,4.345245,2485.6,2485.5,2.19e-06]
[1747744721413,0.80442,2485.3,2485.2,7.26e-06]
[1747744721617,4.01222,2485.3,2485.2,7.26e-06]
[1747744721922,0.80468,2484.5,2484.4,1.4739]
[1747744722114,0.80265,2484.6,2484.5,0.80467]
[1747744722315,1.5293,2485.0,2484.7,0.8046]
[1747744722522,0.80455,2484.9,2484.8,1.4739]
[1747744723024,2.816745,2484.9,2484.8,1.4739]
[1747744724219,1.5293,2485.2,2484.8,4.29066499]
[1747744724418,0.80455,2484.9,2484.8,1.4739]
[1747744724826,0.80455,2484.9,2484.8,3.48609499]
[1747744725036,2.816745,2484.9,2484.8,1.4739]
[1747744725225,0.80472,2484.4,2484.1,12.9678]
[1747744725413,0.00603318,2484.5,2484.3,0.80471]
[1747744725723,0.81071318,2484.5,2484.4,4.01251]
[1747744725924,0.81071318,2484.5,2484.2,1.50006096]
[1747744725925,0.80471,2484.4,2484.3,0.80472]
[1747744726132,0.81073318,2484.5,2484.3,0.80472]
[1747744726426,0.81073318,2484.5,2484.4,1.5586]
[1747744726725,0.81073318,2484.5,2484.4,11.64051658]
[1747744726926,2.82325318,2484.5,2484.4,11.64051658]
[1747744727224,0.81073318,2484.5,2484.4,11.64051658]
[1747744727819,2.82325318,2484.5,2484.4,11.64051658]
[1747744728026,0.81073318,2484.5,2484.4,11.64051658]
[1747744728218,0.81073318,2484.5,2484.4,13.65303658]
[1747744729717,2.82325318,2484.5,2484.4,10.16678135]
[1747744730333,0.81073318,2484.5,2484.4,12.98401135]
[1747744730824,0.81073318,2484.5,2484.4,16.19181135]
[1747744730825,0.00603318,2484.5,2484.4,16.19181135]
[1747744731526,3.2078,2485.7,2485.4,0.80437]
[1747744731723,2.28432,2485.6,2485.5,9.762]
[1747744731924,4.295945,2485.6,2485.5,9.762]
[1747744732227,0.80435,2485.5,2485.4,9.762]
[1747744732424,2.01097,2485.4,2485.0,3.2078]
[1747744732627,2.01097,2485.4,2485.0,11.2766]
[1747744732829,0.80448,2485.1,2485.0,11.2766]
[1747744733130,0.80448,2485.1,2485.0,1.5146]
[1747744733424,0.80458,2484.8,2484.7,40.562]
[1747744733729,0.80464,2484.6,2484.5,0.66552098]
[1747744733932,2.817075,2484.6,2484.5,0.66552098]
[1747744734128,2.817075,2484.6,2484.5,10.42652098]
[1747744734727,4.313375,2484.6,2484.5,10.42652098]
[1747744735027,0.80468,2484.5,2484.4,0.08486477]
[1747744735228,2.30098,2484.5,2484.4,9.84586477]
[1747744735431,2.30098,2484.5,2484.4,0.08486477]
[1747744735432,4.3135,2484.5,2484.4,0.08486477]
[1747744735626,9.3135,2484.5,2484.4,0.08486477]
[1747744735827,4.3135,2484.5,2484.4,0.08486477]
[1747744736526,0.80468,2484.5,2484.4,2.09738477]
[1747744736736,2.8172,2484.5,2484.4,9.84686477]
[1747744737327,2.8172,2484.5,2484.4,0.08486477]
[1747744737529,2.8172,2484.5,2484.4,10.16878857]
[1747744737733,2.8172,2484.5,2484.4,0.40678857]
[1747744738132,9.2554,2484.5,2484.4,0.40678857]
[1747744738331,4.2554,2484.5,2484.4,0.40678857]
[1747744738534,9.2554,2484.5,2484.4,0.40678857]
[1747744738730,4.2554,2484.5,2484.4,0.40678857]
[1747744739330,4.2554,2484.5,2484.4,0.08486477]
[1747744739834,0.80468,2484.5,2484.4,0.08486477]
[1747744740041,2.8172,2484.5,2484.4,0.08486477]
[1747744740333,0.80468,2484.5,2484.4,4.43449477]
[1747744740535,2.01149,2484.8,2484.4,4.43449477]
[1747744740536,1.4812,2484.8,2484.4,3.62978477]
[1747744740832,5.54690754,2485.4,2484.7,2.01154]
[1747744741032,3.14349754,2485.4,2485.3,0.80442]
[1747744741228,3.14349754,2485.4,2485.3,10.04394108]
[1747744741430,3.14349754,2485.4,2485.3,2.29273108]